Company(T),Trans.date,Supplier Name(T),TransNo,Amount,Irrecoverable VAT,Service/Dept(T),Procurement Category,Account code,Account code(T),Narrative/Purpose of Spend,Govt Procurement Card
East Cambridgeshire District Council,22/12/2016,SW Trains,5105745,195.9,,National Practitioner Support Programme,Employees,1051,Staff Travelling,Redacted Personal data  Rail Travel ,Y
East Cambridgeshire District Council,21/12/2016,Maybo,637626,990,,Training,Employees,1130,Training - In House,Conflict Management Initial End User Training 16/12/16,
East Cambridgeshire District Council,12/12/2016,University of Birmingham,637553,"6,995.00",,National Practitioner Support Programme,Employees,1135,Training - External,Leadership programme Redacted Personal data,
East Cambridgeshire District Council,20/12/2016,BRS Training Ltd,637607,952.5,,Member Training,Employees,1135,Training - External,Executive days,
East Cambridgeshire District Council,22/12/2016,CIEH,5105745,20,,Training,Employees,1135,Training - External,Redacted Personal data,Y
East Cambridgeshire District Council,23/12/2016,CIEH,637661,975,,Training,Employees,1160,Professional Subscriptions,,
East Cambridgeshire District Council,02/12/2016,Airelec Maintenance Ltd,637477,"1,770.00",,E Space South,Premises,2020,Premises Contract Work,Replacement AC Works - ESpace North,
East Cambridgeshire District Council,08/12/2016,Airelec Maintenance Ltd,637537,962,,The Grange,Premises,2020,Premises Contract Work,Council Chamber AC System,
East Cambridgeshire District Council,20/12/2016,Harcon Services Ltd,637613,790,,E Space North,Premises,2020,Premises Contract Work,insepction of fall & hire of cherry picker,
East Cambridgeshire District Council,19/12/2016,AmeyCespa (East) Limited,1136012,"1,170.07",,EI Recycling,Premises,2020,Premises Contract Work,Charges for Jul16-Sep16,
East Cambridgeshire District Council,22/12/2016,The PowerWorks Ltd,1136041,"1,220.00",,The Grange,Premises,2030,Premises Asset Management,3 Year UPS Maintenance Contract 16/12/16-15/12/17,
East Cambridgeshire District Council,15/12/2016,Total Gas and Power Limited,1135971,"1,368.36",,The Grange,Premises,2110,Electricity,3004663200 The Grange,
East Cambridgeshire District Council,13/12/2016,Total Gas and Power Limited,1135972,"1,788.95",,The Grange,Premises,2110,Electricity,3004663200 The Grange,
East Cambridgeshire District Council,21/12/2016,Total Gas and Power Limited,1136040,"1,119.44",,E Space North,Premises,2110,Electricity,3004663222 ESpace North,
East Cambridgeshire District Council,15/12/2016,ESPO,1135998,505.56,,The Grange,Premises,2120,Gas,M040A0173612A6 The Grange,
East Cambridgeshire District Council,14/11/2016,Anglian Water,1135780,"1,094.04",,Travellers Site - Earith Bridge,Premises,2410,Water Rates,102890274 Earith Bridge TS 19/7/16-4/11/16,
East Cambridgeshire District Council,22/12/2016,Rigby Taylor Limited,637636,"1,068.00",,Parks And Open Spaces,Premises,2810,Grounds Materials,,
East Cambridgeshire District Council,07/12/2016,S P Landscapes & Tree Contractors Ltd,637519,"2,150.00",,Tree Preservation/Landscaping,Premises,2812,Tree Felling,Redacted Personal data,
East Cambridgeshire District Council,05/12/2016,Barcham Trees plc,637571,"1,012.50",,Tree Preservation/Landscaping,Premises,2813,Tree Planting,,
East Cambridgeshire District Council,29/11/2016,C D Clowe,637484,"1,363.53",,Parking Of Vehicles,Premises,2820,Grounds Contract Work,Barton Road Car Park,
East Cambridgeshire District Council,23/11/2016,Camline Cambridge Ltd,637497,"1,090.00",,Parking Of Vehicles,Premises,2820,Grounds Contract Work,supply & apply hot thermoplastic ground markings,
East Cambridgeshire District Council,08/12/2016,Metro Rod,637558,"1,607.25",,Parking Of Vehicles,Premises,2820,Grounds Contract Work,Ely car parks 5/10/16,
East Cambridgeshire District Council,07/12/2016,Tailormade Metal Fabrications Ltd,637536,706.46,,Parks And Open Spaces,Transport,3010,Vehicle Repairs,Service Ifor Williams Trailer,
East Cambridgeshire District Council,19/12/2016,Tailormade Metal Fabrications Ltd,637608,512.1,,Parks And Open Spaces,Transport,3010,Vehicle Repairs,Inspection trailer service,
East Cambridgeshire District Council,19/12/2016,Tailormade Metal Fabrications Ltd,637609,"1,276.06",,Parks And Open Spaces,Transport,3010,Vehicle Repairs,Market trailer,
East Cambridgeshire District Council,22/12/2016,DVLA,5105745,25,,Sanctuary Grasscutting,Transport,3010,Vehicle Repairs,Duplicate Reg Doc ,Y
East Cambridgeshire District Council,02/12/2016,Be Fuelcards,1135898,579.56,,General Gang,Transport,3021,Derv,November Fuelcards,
East Cambridgeshire District Council,02/12/2016,Be Fuelcards,1135898,694.12,,Parks And Open Spaces,Transport,3021,Derv,November Fuelcards,
East Cambridgeshire District Council,02/12/2016,Be Fuelcards,1135898,526.98,,Sanctuary Grasscutting,Transport,3021,Derv,November Fuelcards,
East Cambridgeshire District Council,09/12/2016,G & J Peck Ltd,637556,515,,Parks And Open Spaces,Supplies and Services,4010,Equipment - Purchases,Trimmer,
East Cambridgeshire District Council,05/12/2016,Cambridge Door Services Ltd,637572,735,,Parking Of Vehicles,Supplies and Services,4011,Equipment - Repairs,Carry out Service to Car Park Barrier - Fountain Lane & Clay Street,
East Cambridgeshire District Council,22/12/2016,Tailormade Metal Fabrications Ltd,637643,671.29,,Parks And Open Spaces,Supplies and Services,4011,Equipment - Repairs,,
East Cambridgeshire District Council,22/12/2016,Tailormade Metal Fabrications Ltd,637644,"1,327.69",,Parks And Open Spaces,Supplies and Services,4011,Equipment - Repairs,Market Trailer,
East Cambridgeshire District Council,24/12/2016,Neopost Ltd,1136069,"1,753.80",,Registration of Electors,Supplies and Services,4014,Equipment - Maint. Agreements,DS-85 Inserter Total care 27/1/17-26/1/18,
East Cambridgeshire District Council,01/12/2016,Campbell Solutions Ltd,637619,912,,Country Park,Supplies and Services,4015,S106 Spend,Brown Sloper Benches & Brackets,
East Cambridgeshire District Council,22/12/2016,Mark Weatherhead Ltd,637642,"62,342.91",,Parks And Open Spaces,Supplies and Services,4015,S106 Spend,,
East Cambridgeshire District Council,22/12/2016,Ely Cathedral,1136033,"5,000.00",,"PC Sacrists/Choirs, Ely",Supplies and Services,4015,S106 Spend,Closure of Sacrist Gate Public Conveniences,
East Cambridgeshire District Council,06/12/2016,Park Retail Ltd t/as Love2Reward,637506,"1,274.00",,Recycling Reward Scheme,Supplies and Services,4030,Materials - Purchase,love 2 shop vouchers,
East Cambridgeshire District Council,19/12/2016,Bunzl  Cleaning & Hygiene Supplies,637591,523.6,,Public Conveniences,Supplies and Services,4030,Materials - Purchase,,
East Cambridgeshire District Council,19/12/2016,Purchase Power,637654,688.31,,E Space North,Supplies and Services,4030,Materials - Purchase,,
East Cambridgeshire District Council,08/12/2016,The Newmarket Hamper Company,637587,800,,Civic Relations,Supplies and Services,4110,Food /Refreshments Purchased,Buffet for 15/12/16,
East Cambridgeshire District Council,19/12/2016,Sabell & Co (Birmingham) Ltd,637602,"1,810.00",,Building Regulations Admin,Supplies and Services,4310,Printing & Stationery,Various folders,
East Cambridgeshire District Council,19/12/2016,Sabell & Co (Birmingham) Ltd,637602,"2,346.00",,Planning,Supplies and Services,4310,Printing & Stationery,Various folders,
East Cambridgeshire District Council,22/12/2016,Colourbyte,5105745,70.95,,Printing/Copying,Supplies and Services,4310,Printing & Stationery,Vinyl & Banner ,Y
East Cambridgeshire District Council,22/12/2016,IPF Store,5105745,49.94,,Printing/Copying,Supplies and Services,4310,Printing & Stationery,Grey Ink ,Y
East Cambridgeshire District Council,02/12/2016,Thomson Reuters t/as Sweet & Maxwell Ltd,1135907,599,,Legal,Supplies and Services,4320,Publications & books,70096040 Local Authority Licensing,
East Cambridgeshire District Council,06/12/2016,Thomson Reuters t/as Sweet & Maxwell Ltd,1135910,"1,625.00",,Legal,Supplies and Services,4320,Publications & books,Ency Planning Law & Practice,
East Cambridgeshire District Council,30/11/2016,The Oyster Partnership,637468,966.75,,Homelessness,Supplies and Services,4401,Agency Workers,Redacted Personal data - Week Commencing 21/11/16,
East Cambridgeshire District Council,06/12/2016,Matchtech Group Ltd,637508,"1,554.00",,Planning,Supplies and Services,4401,Agency Workers,Redacted Personal data W/C 21/11/16,
East Cambridgeshire District Council,07/12/2016,The Oyster Partnership,637522,845.75,,Homelessness,Supplies and Services,4401,Agency Workers,Redacted Personal data W/C 28/11/16,
East Cambridgeshire District Council,15/12/2016,The Oyster Partnership,637583,925,,Homelessness,Supplies and Services,4401,Agency Workers,Redacted Personal data - Week Commencing 05/12/16,
East Cambridgeshire District Council,12/12/2016,Matchtech Group Ltd,637597,"1,554.00",,Planning,Supplies and Services,4401,Agency Workers,Redacted Personal data - Week Commencing 28/11/16,
East Cambridgeshire District Council,23/12/2016,Matchtech Group Ltd,637662,"1,554.00",,Planning,Supplies and Services,4401,Agency Workers,Redacted Personal data,
East Cambridgeshire District Council,12/12/2016,G4S Cash Solutions (UK) Ltd,1135938,822.99,,Angel Drove Commuters Car Park,Supplies and Services,4412,Courier Service,Contract 3342504 1/1/17-31/1/17,
East Cambridgeshire District Council,05/12/2016,Robinson Layer,637514,750,,Legal,Supplies and Services,4413,District Valuer,Redacted Personal data,
East Cambridgeshire District Council,05/12/2016,Valuation Office Agency Admin,1135941,"1,500.00",,Planning,Supplies and Services,4413,District Valuer,Barton Rd,
East Cambridgeshire District Council,20/12/2016,Cambridge University Hospitals NHS,637615,550.3,,Human Resources,Supplies and Services,4416,Occupational Health,Occupational Health Nov 2016,
East Cambridgeshire District Council,30/11/2016,Redacted Personal data,637491,"1,050.00",,Homelessness,Supplies and Services,4421,Sanctuary Homelessness/Rent Deposit,Redacted Personal data,
East Cambridgeshire District Council,05/12/2016,Angel Business Solutions Ltd T/As Martin & Co,637509,"1,375.00",,Homelessness,Supplies and Services,4421,Sanctuary Homelessness/Rent Deposit,Redacted Personal data,
East Cambridgeshire District Council,15/12/2016,Redacted Personal data,637569,"1,050.00",,Homelessness,Supplies and Services,4421,Sanctuary Homelessness/Rent Deposit,Redacted Personal data,
East Cambridgeshire District Council,16/12/2016,Haart,637612,"1,523.07",,Homelessness,Supplies and Services,4421,Sanctuary Homelessness/Rent Deposit,Redacted Personal data,
East Cambridgeshire District Council,20/12/2016,Redacted Personal data,637622,"1,070.00",,Homelessness,Supplies and Services,4421,Sanctuary Homelessness/Rent Deposit,Deposit for Redacted Personal data,
East Cambridgeshire District Council,05/12/2016,AmeyCespa (East) Limited,637540,915.2,,Sanctuary Grasscutting,Supplies and Services,4428,Tipping Fees,,
East Cambridgeshire District Council,30/11/2016,Foresight Consulting (UK) Ltd,637466,"8,160.80",,Transformation Programme,Supplies and Services,4430,Consultants Fees,Transformation Programme - Phase 1,
East Cambridgeshire District Council,06/12/2016,Landscope Land & Property Ltd,637496,662,,Planning,Supplies and Services,4430,Consultants Fees,discuss & negotiate with Planner Potters Stud Oct 2016,
East Cambridgeshire District Council,08/12/2016,Jeremy Benn Associates Limited,637528,"5,604.65",,Local Plan Preparation,Supplies and Services,4430,Consultants Fees,Submission of Draft Water Cycle Study Report,
East Cambridgeshire District Council,20/12/2016,Foresight Consulting (UK) Ltd,637621,"5,845.60",,Transformation Programme,Supplies and Services,4430,Consultants Fees,Transformation Programme Phase 1,
East Cambridgeshire District Council,15/12/2016,East of England Local Government Association,637632,"30,000.00",,Devolution,Supplies and Services,4430,Consultants Fees,Devolution Support Phase 3,
East Cambridgeshire District Council,15/12/2016,East of England Local Government Association,637638,"4,825.20",,Corp.Man.Policy Research/Review,Supplies and Services,4430,Consultants Fees,JE Support - 7.5 days - Redacted Personal data- Nov16,
East Cambridgeshire District Council,23/12/2016,Trowers & Hamlins LLP,637649,"1,900.00",,Asset Management,Supplies and Services,4430,Consultants Fees,Market Services,
East Cambridgeshire District Council,19/12/2016,Leicester City Council,637595,"5,973.96",,Air Quality Monitoring,Supplies and Services,4434,Air Quality Monitoring,MO2 Monitor & Data Provision,
East Cambridgeshire District Council,19/12/2016,Elys Removal Service,637606,660,,Homelessness,Supplies and Services,4440,Removal Expenses,Armour storage Littleport to Little Downham,
East Cambridgeshire District Council,03/11/2016,Ernst & Young LLP,1135723,"14,177.00",,Corp.Man.Policy Research/Review,Supplies and Services,4441,External Audit Fees,Second Quarter - Audit Services,
East Cambridgeshire District Council,28/10/2016,Northgate Public Services (UK) Ltd,637539,"5,375.00",,LATC,Supplies and Services,4452,IT - Upgrade consultants,PARIS Services - New Fund for ECTC & Update IVR,
East Cambridgeshire District Council,28/10/2016,Northgate Public Services (UK) Ltd,637651,"4,500.00",,Information Technology,Supplies and Services,4452,IT - Upgrade consultants,Paris services upgrade,
East Cambridgeshire District Council,19/12/2016,Purchase Power,637654,"1,013.00",,E Space North,Supplies and Services,4510,Postage,,
East Cambridgeshire District Council,15/12/2016,Neopost Ltd,1135954,"2,000.00",,DMS,Supplies and Services,4510,Postage,Postage Recredit 22/11 & 5/12/16,
East Cambridgeshire District Council,29/11/2016,Virgin Media Payments Ltd - 743058701,1135846,"1,990.05",,The Grange,Supplies and Services,4520,Telephone,743058701,
East Cambridgeshire District Council,06/12/2016,Virgin Media Payments - 923467,1135928,903.88,,Information Technology,Supplies and Services,4522,Contributions (IT Only CCN),Account 923467,
East Cambridgeshire District Council,28/12/2016,Local World Ltd - Cambridge Newspapers,637668,504,,Planning,Supplies and Services,4532,T&C Planning Act Adverts,Cambridgeshire news 22/12/16,
East Cambridgeshire District Council,30/11/2016,NU Network Products Ltd,637467,"3,408.26",,Information Technology,Supplies and Services,4550,IT Licences,Desktop Central Patch Management - Expiry 29/11/17,
East Cambridgeshire District Council,23/12/2016,KTSL Ltd,637655,"3,171.72",,Information Technology,Supplies and Services,4550,IT Licences,BMC SDE Ann Supp Renewal 1/12/16-31/12/17,
East Cambridgeshire District Council,02/11/2016,Getty Images International,1135661,500,,Information Technology,Supplies and Services,4550,IT Licences,SUB THINK 50 31/10/16-31/10/17,
East Cambridgeshire District Council,19/12/2016,Citrix Online Uk Ltd,1136013,"2,246.40",,Information Technology,Supplies and Services,4550,IT Licences,GoToAssist Remote Support Service 19/12/16-18/12/17,
East Cambridgeshire District Council,22/12/2016,Split Media Lab,5105745,165.56,,Information Technology,Supplies and Services,4550,IT Licences,Xsplit premium ,Y
East Cambridgeshire District Council,07/12/2016,ClearView Communications Limited,637525,"3,886.00",,Community Safety,Supplies and Services,4713,Grants - Contributions,ANPR System,
East Cambridgeshire District Council,18/12/2016,XL Circondare Ltd,637666,"1,045.00",,Community Safety,Supplies and Services,4713,Grants - Contributions,Wallplanner,
East Cambridgeshire District Council,01/12/2016,The Ellesmere Centre,637470,800,,Sports Co-ord (Leisure Centre & Sports Facs SLA/Investment),Supplies and Services,4730,Grants - Sports Dec,SLA Grant,
East Cambridgeshire District Council,10/11/2016,Wolters Kluwer (UK) Ltd,1135769,"1,200.00",,Health & Safety (Work),Supplies and Services,4780,Subscriptions - General,Croner-i H&S Expert & HS Training,
East Cambridgeshire District Council,22/12/2016,Google,5105745,6.6,,LATC,Supplies and Services,4780,Subscriptions - General,Email Sub ,Y
East Cambridgeshire District Council,22/12/2016,Law Society,5105745,322,,Legal Services Holding A/C,Supplies and Services,4786,Subscriptions - Law Society Practice Cert,Redacted Personal data Practising Cert ,Y
East Cambridgeshire District Council,19/12/2016,Elys Removal Service,637605,858,,Homelessness,Supplies and Services,4910,Other Payments,Redacted Personal data 3 weeks storage 9/11/16-1/12/16,
East Cambridgeshire District Council,15/12/2016,Redacted Personal data,1135951,"2,000.00",,Marketing & Grants,Supplies and Services,4910,Other Payments,Escape Room at Oliver Cromwell�s House - Ticket Sales November,
East Cambridgeshire District Council,22/12/2016,British Heart Foundation,1136058,960.08,,EI Recycling,Supplies and Services,4924,Recycling Credits,Recycling Credits 2016/17  1st & 2nd Quarters,
East Cambridgeshire District Council,22/12/2016,NSPCC,1136059,569.94,,EI Recycling,Supplies and Services,4924,Recycling Credits,Recycling Credits 2016/17  1st & 2nd Quarters,
East Cambridgeshire District Council,22/12/2016,Macmillan Cancer Support,1136063,"1,634.74",,EI Recycling,Supplies and Services,4924,Recycling Credits,Recycling Credits 2016/17  1st & 2nd Quarters,
East Cambridgeshire District Council,01/12/2016,Stannah Lift Services Ltd,1135861,892.36,,Home Improvement Agency Services,Supplies and Services,4938,Client Contribution,Invoice S085050871 part payment Redacted Personal data,
East Cambridgeshire District Council,01/12/2016,PVS Holdings Ltd,1135863,867.15,,Home Improvement Agency Services,Supplies and Services,4938,Client Contribution,Inv 34594 part payment Redacted Personal data - Ramp Installation,
East Cambridgeshire District Council,01/12/2016,"Bob Smith Heating, Plumbing & Electrical Ltd",1135865,"3,338.65",,Home Improvement Agency Services,Supplies and Services,4938,Client Contribution,Inv 43365 part payment Redacted Personal data,
East Cambridgeshire District Council,15/12/2016,Man Construction Ltd,1135993,"8,203.98",,Home Improvement Agency Services,Supplies and Services,4938,Client Contribution,Redacted Personal data,
East Cambridgeshire District Council,22/12/2016,Ashco Building & Maintenance Services Ltd,1136029,"2,506.68",,Home Improvement Agency Services,Supplies and Services,4938,Client Contribution,Balance Invoice AC0214122 - Redacted Personal data,
East Cambridgeshire District Council,22/12/2016,Paul Barrow Builders  Ltd,1136032,"4,398.62",,Home Improvement Agency Services,Supplies and Services,4938,Client Contribution,Balance of Inv 1508 - Redacted Personal data,
East Cambridgeshire District Council,22/12/2016,Ashco Building & Maintenance Services Ltd,1136036,"4,824.63",,Home Improvement Agency Services,Supplies and Services,4938,Client Contribution,LAS carried out Redacted Personal data,
East Cambridgeshire District Council,15/12/2016,East of England Local Government Association,637667,"3,400.00",,Public Relations,Third Party Payments,5010,Contracted Services,Strategic Comms Redacted Personal data 8 days,
East Cambridgeshire District Council,25/11/2016,Veolia ES (UK) Ltd,1135868,"1,044.14",,Recycling,Third Party Payments,5010,Contracted Services,Annual Uplift - April 16-October 16,
East Cambridgeshire District Council,25/11/2016,Veolia ES (UK) Ltd,1135868,"1,044.14",,Recycling Organic Waste,Third Party Payments,5010,Contracted Services,Annual Uplift - April 16-October 16,
East Cambridgeshire District Council,25/11/2016,Veolia ES (UK) Ltd,1135868,"2,431.06",,Refuse Collection,Third Party Payments,5010,Contracted Services,Annual Uplift - April 16-October 16,
East Cambridgeshire District Council,25/11/2016,Veolia ES (UK) Ltd,1135868,"1,484.07",,Weekly Collection Support Grant,Third Party Payments,5010,Contracted Services,Annual Uplift - April 16-October 16,
East Cambridgeshire District Council,25/11/2016,Veolia ES (UK) Ltd,1135868,"1,533.35",,Street Cleansing,Third Party Payments,5010,Contracted Services,Annual Uplift - April 16-October 16,
East Cambridgeshire District Council,12/12/2016,SLM Ltd,1135940,"9,363.00",,Paradise Pool,Third Party Payments,5010,Contracted Services,Management Fee - December 2016,
East Cambridgeshire District Council,14/12/2016,Veolia ES (UK) Ltd,1135947,"1,892.72",,Bulk Waste,Third Party Payments,5010,Contracted Services,Collections 1/11/16-31/11/16,
East Cambridgeshire District Council,14/12/2016,Veolia ES (UK) Ltd,1135947,"26,696.25",,Recycling,Third Party Payments,5010,Contracted Services,Collections 1/11/16-31/11/16,
East Cambridgeshire District Council,14/12/2016,Veolia ES (UK) Ltd,1135947,"26,696.25",,Recycling Organic Waste,Third Party Payments,5010,Contracted Services,Collections 1/11/16-31/11/16,
East Cambridgeshire District Council,14/12/2016,Veolia ES (UK) Ltd,1135947,"64,543.89",,Refuse Collection,Third Party Payments,5010,Contracted Services,Collections 1/11/16-31/11/16,
East Cambridgeshire District Council,14/12/2016,Veolia ES (UK) Ltd,1135947,"41,092.39",,Weekly Collection Support Grant,Third Party Payments,5010,Contracted Services,Collections 1/11/16-31/11/16,
East Cambridgeshire District Council,14/12/2016,Veolia ES (UK) Ltd,1135947,"45,162.31",,Street Cleansing,Third Party Payments,5010,Contracted Services,Collections 1/11/16-31/11/16,
East Cambridgeshire District Council,30/12/2016,East Cambs Trading Co Ltd,1136074,"50,045.11",,Thursday Market,Third Party Payments,5010,Contracted Services,Market management fee 22/9/16-23/12/16,
East Cambridgeshire District Council,01/12/2016,Breckland Council,1135867,"38,358.90",,Council Tax Collection Costs,Third Party Payments,5020,ARP Services,Monthly Provision of Service 2016/17,
East Cambridgeshire District Council,01/12/2016,Breckland Council,1135867,"47,059.53",,Housing Benefits,Third Party Payments,5020,ARP Services,Monthly Provision of Service 2016/17,
East Cambridgeshire District Council,01/12/2016,Breckland Council,1135867,"9,716.74",,NNDR Collection costs,Third Party Payments,5020,ARP Services,Monthly Provision of Service 2016/17,
East Cambridgeshire District Council,01/12/2016,Breckland Council,1135867,"-1,016.11",,Anglia Revenue Partnerships (ARP),Third Party Payments,5020,ARP Services,Monthly Provision of Service 2016/17,
East Cambridgeshire District Council,11/11/2016,PBW Solicitors Ely Limited,637428,"2,491.80",,Littleport Station Car Park,Capital Costs,C301,Professional Fees,Redacted Personal data,
East Cambridgeshire District Council,21/12/2016,University of Cambridge,637629,"31,902.65",,Leisure Facility,Capital Costs,C301,Professional Fees,Archaeological Excavation at Ely Leisure Village,
East Cambridgeshire District Council,07/12/2016,BB Surveys Limited,637637,625,,Angel Drove Commuters Car Park,Capital Costs,C301,Professional Fees,Topographic Survey - Angel Drove,
East Cambridgeshire District Council,17/12/2016,G H Bullard & Associates LLP,637639,"3,270.00",,Angel Drove Commuters Car Park,Capital Costs,C301,Professional Fees,Angel Drove,
East Cambridgeshire District Council,14/12/2016,Ingleton Wood LLP,637650,"24,570.00",,Littleport Station Car Park,Capital Costs,C301,Professional Fees,Land Adj to Littleport Station,
East Cambridgeshire District Council,14/12/2016,Spectrum Acoustic Consultants Ltd,637653,"2,000.00",,Littleport Station Car Park,Capital Costs,C301,Professional Fees,Acoustic consultancy res develop Littleport Station,
East Cambridgeshire District Council,01/12/2016,Trevor Benton Construction Ltd,1135872,"14,161.90",,Mandatory Disabled Fac.Grant,Capital Costs,C402,Home Imp.Grant 50% advance,Redacted Personal data,
East Cambridgeshire District Council,08/12/2016,Redacted Personal data,1135937,"11,467.88",,Mandatory Disabled Fac.Grant,Capital Costs,C402,Home Imp.Grant 50% advance,Redacted Personal data,
East Cambridgeshire District Council,22/12/2016,Paul Barrow Builders  Ltd,1136030,"4,273.38",,Mandatory Disabled Fac.Grant,Capital Costs,C402,Home Imp.Grant 50% advance,Redacted Personal data,
East Cambridgeshire District Council,22/12/2016,Paul Barrow Builders  Ltd,1136037,"10,670.00",,Mandatory Disabled Fac.Grant,Capital Costs,C402,Home Imp.Grant 50% advance,Redacted Personal data,
East Cambridgeshire District Council,01/12/2016,Stannah Lift Services Ltd,1135860,"1,637.02",,Mandatory Disabled Fac.Grant,Capital Costs,C404,Home Imp.Grant. Final payment,Redacted Personal data,
East Cambridgeshire District Council,01/12/2016,PVS Holdings Ltd,1135862,"1,300.73",,Mandatory Disabled Fac.Grant,Capital Costs,C404,Home Imp.Grant. Final payment,Redacted Personal data,
East Cambridgeshire District Council,01/12/2016,"Bob Smith Heating, Plumbing & Electrical Ltd",1135864,"5,007.97",,Mandatory Disabled Fac.Grant,Capital Costs,C404,Home Imp.Grant. Final payment,Redacted Personal data,
East Cambridgeshire District Council,15/12/2016,Redacted Personal data,1135994,"3,947.21",,Mandatory Disabled Fac.Grant,Capital Costs,C404,Home Imp.Grant. Final payment,Redacted Personal data,
East Cambridgeshire District Council,22/12/2016,Gas Heating Services Ltd,1136026,"9,653.49",,Mandatory Disabled Fac.Grant,Capital Costs,C404,Home Imp.Grant. Final payment,Redacted Personal data,
East Cambridgeshire District Council,22/12/2016,Ashco Building & Maintenance Services Ltd,1136028,"4,110.03",,Mandatory Disabled Fac.Grant,Capital Costs,C404,Home Imp.Grant. Final payment,Redacted Personal data,
East Cambridgeshire District Council,01/12/2016,Thrift Energy Ltd,1135866,"2,429.24",,Home Repair Assistance,Capital Costs,C405,Home Repair Grants,Redacted Personal data,
